[Event "January 9 Early 2024"]
[Site "https://www.chess.com"]
[Date "2024.01.11"]
[Round "5"]
[White "Eugene, Floryan"]
[Black "Bhagyashree Patil"]
[Result "0-1"]
[Board "271"]
[TimeControl "180+1"]
[WhiteFideId "20694784"]
[BlackFideId "25053256"]
[WhiteElo "2562"]
[BlackElo "2344"]
[WhiteTeam "FRA"]
[BlackTeam "IND"]
[WhiteClock "0:00:08"]
[BlackClock "0:00:08"]

1. d4 {[%clk 0:03:00]}  d5 {[%clk 0:02:58]} 2. Nc3 {[%clk 0:03:01]}  Nf6 {[%clk 0:02:57]} 3. Bf4 {[%clk 0:03:01]}  e6 {[%clk 0:02:57]} 4. Nb5 {[%clk 0:02:53]}  Bd6 {[%clk 0:02:56]} 5. Nxd6+ {[%clk 0:02:52]}  cxd6 {[%clk 0:02:56]} 6. e3 {[%clk 0:02:51]}  Nc6 {[%clk 0:02:57]} 7. Nf3 {[%clk 0:02:50]}  O-O {[%clk 0:02:57]} 8. Bd3 {[%clk 0:02:48]}  Re8 {[%clk 0:02:57]} 9. Bg5 {[%clk 0:02:28]}  e5 {[%clk 0:02:55]} 10. Be2 {[%clk 0:02:27]}  Be6 {[%clk 0:02:00]} 11. O-O {[%clk 0:02:26]}  Qa5 {[%clk 0:01:53]} 12. Bxf6 {[%clk 0:02:24]}  gxf6 {[%clk 0:01:53]} 13. c3 {[%clk 0:02:25]}  Kf8 {[%clk 0:01:49]} 14. Nh4 {[%clk 0:02:21]}  Ke7 {[%clk 0:01:44]} 15. Bg4 {[%clk 0:02:19]}  Rg8 {[%clk 0:01:41]} 16. Nf5+ {[%clk 0:02:20]}  Kd7 {[%clk 0:01:33]} 17. h4 {[%clk 0:01:33]}  Rxg4 {[%clk 0:01:09]} 18. Qxg4 {[%clk 0:01:32]}  Ne7 {[%clk 0:01:10]} 19. Qg7 {[%clk 0:01:14]}  Nxf5 {[%clk 0:00:53]} 20. Qxf6 {[%clk 0:01:14]}  Qd8 {[%clk 0:00:54]} 21. dxe5 {[%clk 0:01:06]}  Qxf6 {[%clk 0:00:52]} 22. exf6 {[%clk 0:01:06]}  Nxh4 {[%clk 0:00:52]} 23. f3 {[%clk 0:00:49]}  Rg8 {[%clk 0:00:48]} 24. Rf2 {[%clk 0:00:49]}  Rg6 {[%clk 0:00:42]} 25. Rd1 {[%clk 0:00:49]}  Rxf6 {[%clk 0:00:42]} 26. Rd4 {[%clk 0:00:38]}  Nf5 {[%clk 0:00:39]} 27. Ra4 {[%clk 0:00:38]}  Nxe3 {[%clk 0:00:37]} 28. Rxa7 {[%clk 0:00:36]}  Kc7 {[%clk 0:00:30]} 29. Ra8 {[%clk 0:00:35]}  Rg6 {[%clk 0:00:29]} 30. Re2 {[%clk 0:00:32]}  Nc4 {[%clk 0:00:24]} 31. Rh8 {[%clk 0:00:30]}  h6 {[%clk 0:00:21]} 32. b3 {[%clk 0:00:28]}  Ne5 {[%clk 0:00:21]} 33. Kf2 {[%clk 0:00:22]}  Bf5 {[%clk 0:00:16]} 34. Rd2 {[%clk 0:00:22]}  Nd3+ {[%clk 0:00:14]} 35. Ke3 {[%clk 0:00:21]}  Re6+ {[%clk 0:00:14]} 36. Kd4 {[%clk 0:00:19]}  Nf4 {[%clk 0:00:10]} 37. c4 {[%clk 0:00:03]}  Ne2+ {[%clk 0:00:06]} 38. Rxe2 {[%clk 0:00:02]}  Rxe2 {[%clk 0:00:07]} 39. Kxd5 {[%clk 0:00:02]}  Rxg2 {[%clk 0:00:06]} 40. Kd4 {[%clk 0:00:02]}  Be6 {[%clk 0:00:06]} 41. Rxh6 {[%clk 0:00:02]}  Rxa2 {[%clk 0:00:06]} 42. f4 {[%clk 0:00:01]}  Rf2 {[%clk 0:00:05]} 43. Rf6 {[%clk 0:00:02]}  Rf3 {[%clk 0:00:05]} 44. Ke4 {[%clk 0:00:02]}  Rxb3 {[%clk 0:00:03]} 45. Kd4 {[%clk 0:00:03]}  Rb4 {[%clk 0:00:01]} 46. f5 {[%clk 0:00:01]}  Bxc4 {[%clk 0:00:02]} 47. Kc3 {[%clk 0:00:01]}  Ra4 {[%clk 0:00:02]} 48. Rh6 {[%clk 0:00:01]}  b5 {[%clk 0:00:02]} 49. Rh8 {[%clk 0:00:01]}  Ra3+ {[%clk 0:00:02]} 50. Kb2 {[%clk 0:00:01]}  Rf3 {[%clk 0:00:03]} 51. Kc2 {[%clk 0:00:02]}  Rf2+ {[%clk 0:00:03]} 52. Kc3 {[%clk 0:00:02]}  Rf3+ {[%clk 0:00:04]} 53. Kb4 {[%clk 0:00:03]}  Kc6 {[%clk 0:00:04]} 54. Rc8+ {[%clk 0:00:03]}  Kd5 {[%clk 0:00:05]} 55. Rh8 {[%clk 0:00:03]}  Rb3+ {[%clk 0:00:05]} 56. Ka5 {[%clk 0:00:04]}  Rf3 {[%clk 0:00:06]} 57. Kb4 {[%clk 0:00:04]}  Rxf5 {[%clk 0:00:06]} 58. Rd8 {[%clk 0:00:04]}  Rf3 {[%clk 0:00:06]} 59. Ka5 {[%clk 0:00:05]}  f5 {[%clk 0:00:07]} 60. Rf8 {[%clk 0:00:05]}  f4 {[%clk 0:00:08]} 61. Kb4 {[%clk 0:00:05]}  Rf1 {[%clk 0:00:07]} 62. Rf5+ {[%clk 0:00:06]}  Ke4 {[%clk 0:00:07]} 63. Rh5 {[%clk 0:00:07]}  d5 {[%clk 0:00:07]} 64. Kc3 {[%clk 0:00:07]}  f3 {[%clk 0:00:07]} 65. Kd2 {[%clk 0:00:08]}  Rg1 {[%clk 0:00:07]} 66. Rh2 {[%clk 0:00:08]}  Rg2+ {[%clk 0:00:08]} 0-1

[Event "January 9 Early 2024"]
[Site "https://www.chess.com"]
[Date "2024.01.11"]
[Round "5"]
[White "Lysyj, Igor"]
[Black "Svane, Rasmus"]
[Result "0-1"]
[Board "273"]
[TimeControl "180+1"]
[WhiteFideId "4150120"]
[BlackFideId "4657101"]
[WhiteElo "2856"]
[BlackElo "3022"]
[WhiteTeam "FID"]
[BlackTeam "GER"]
[WhiteClock "0:00:02"]
[BlackClock "0:00:06"]

1. d4 {[%clk 0:02:59]}  d5 {[%clk 0:02:58]} 2. c4 {[%clk 0:02:59]}  e6 {[%clk 0:02:59]} 3. Nf3 {[%clk 0:02:59]}  a6 {[%clk 0:02:59]} 4. cxd5 {[%clk 0:02:58]}  exd5 {[%clk 0:03:00]} 5. Nc3 {[%clk 0:02:58]}  Nf6 {[%clk 0:03:00]} 6. Bg5 {[%clk 0:02:56]}  Be6 {[%clk 0:02:59]} 7. e3 {[%clk 0:02:54]}  Nbd7 {[%clk 0:03:00]} 8. Bd3 {[%clk 0:02:53]}  Bd6 {[%clk 0:03:00]} 9. O-O {[%clk 0:02:51]}  c6 {[%clk 0:03:00]} 10. Bf4 {[%clk 0:02:51]}  Qc7 {[%clk 0:03:00]} 11. Qd2 {[%clk 0:02:50]}  O-O {[%clk 0:02:45]} 12. h3 {[%clk 0:02:50]}  g6 {[%clk 0:02:46]} 13. Rfe1 {[%clk 0:02:48]}  Rfe8 {[%clk 0:02:42]} 14. b4 {[%clk 0:02:35]}  Nh5 {[%clk 0:02:39]} 15. Bh2 {[%clk 0:02:34]}  Bxh2+ {[%clk 0:02:34]} 16. Nxh2 {[%clk 0:02:34]}  Ng7 {[%clk 0:02:28]} 17. a4 {[%clk 0:02:31]}  Nb6 {[%clk 0:02:15]} 18. Nf3 {[%clk 0:02:18]}  Bf5 {[%clk 0:02:10]} 19. Bf1 {[%clk 0:02:16]}  Red8 {[%clk 0:01:54]} 20. Rec1 {[%clk 0:02:11]}  Qe7 {[%clk 0:01:51]} 21. Qb2 {[%clk 0:02:07]}  Ne8 {[%clk 0:01:50]} 22. a5 {[%clk 0:02:05]}  Nd7 {[%clk 0:01:46]} 23. Na4 {[%clk 0:02:05]}  Nd6 {[%clk 0:01:46]} 24. Nc5 {[%clk 0:02:04]}  Re8 {[%clk 0:01:40]} 25. Re1 {[%clk 0:01:59]}  Qd8 {[%clk 0:01:25]} 26. Nd2 {[%clk 0:01:56]}  Nf6 {[%clk 0:01:20]} 27. f3 {[%clk 0:01:54]}  Qc7 {[%clk 0:01:18]} 28. Qc3 {[%clk 0:01:53]}  Re7 {[%clk 0:01:17]} 29. g4 {[%clk 0:01:42]}  Nb5 {[%clk 0:01:14]} 30. Qb2 {[%clk 0:01:36]}  Bd7 {[%clk 0:01:08]} 31. Bg2 {[%clk 0:01:35]}  h5 {[%clk 0:01:05]} 32. Nf1 {[%clk 0:01:32]}  Rae8 {[%clk 0:01:04]} 33. Qf2 {[%clk 0:01:31]}  hxg4 {[%clk 0:00:57]} 34. hxg4 {[%clk 0:01:30]}  Kg7 {[%clk 0:00:57]} 35. g5 {[%clk 0:01:18]}  Nh5 {[%clk 0:00:54]} 36. Rac1 {[%clk 0:01:10]}  Bc8 {[%clk 0:00:54]} 37. f4 {[%clk 0:01:05]}  Kg8 {[%clk 0:00:46]} 38. Ng3 {[%clk 0:01:03]}  Nxg3 {[%clk 0:00:46]} 39. Qxg3 {[%clk 0:01:03]}  Nd6 {[%clk 0:00:46]} 40. Nd3 {[%clk 0:00:22]}  Nf5 {[%clk 0:00:43]} 41. Qf2 {[%clk 0:00:22]}  Nxe3 {[%clk 0:00:39]} 42. Ne5 {[%clk 0:00:21]}  Ng4 {[%clk 0:00:35]} 43. Qh4 {[%clk 0:00:20]}  Kg7 {[%clk 0:00:18]} 44. Nxg4 {[%clk 0:00:18]}  Rxe1+ {[%clk 0:00:17]} 45. Rxe1 {[%clk 0:00:18]}  Rxe1+ {[%clk 0:00:18]} 46. Qxe1 {[%clk 0:00:18]}  Bxg4 {[%clk 0:00:18]} 47. Qe5+ {[%clk 0:00:17]}  Qxe5 {[%clk 0:00:19]} 48. dxe5 {[%clk 0:00:16]}  Kf8 {[%clk 0:00:13]} 49. Kf2 {[%clk 0:00:16]}  d4 {[%clk 0:00:10]} 50. Bf3 {[%clk 0:00:15]}  Bf5 {[%clk 0:00:07]} 51. Ke2 {[%clk 0:00:13]}  Ke7 {[%clk 0:00:07]} 52. Kd2 {[%clk 0:00:13]}  Ke6 {[%clk 0:00:07]} 53. Bg2 {[%clk 0:00:12]}  Bb1 {[%clk 0:00:05]} 54. Bh3+ {[%clk 0:00:10]}  Kd5 {[%clk 0:00:06]} 55. Bc8 {[%clk 0:00:09]}  Kc4 {[%clk 0:00:03]} 56. Bxb7 {[%clk 0:00:09]}  Kxb4 {[%clk 0:00:04]} 57. Bxa6 {[%clk 0:00:09]}  Ba2 {[%clk 0:00:03]} 58. Bb7 {[%clk 0:00:08]}  Kxa5 {[%clk 0:00:03]} 59. Bxc6 {[%clk 0:00:09]}  Kb6 {[%clk 0:00:03]} 60. Be4 {[%clk 0:00:08]}  Kc5 {[%clk 0:00:04]} 61. f5 {[%clk 0:00:07]}  gxf5 {[%clk 0:00:04]} 62. Bxf5 {[%clk 0:00:07]}  Kd5 {[%clk 0:00:04]} 63. e6 {[%clk 0:00:05]}  fxe6 {[%clk 0:00:04]} 64. Bd3 {[%clk 0:00:02]}  e5 {[%clk 0:00:04]} 65. g6 {[%clk 0:00:02]}  e4 {[%clk 0:00:05]} 66. g7 {[%clk 0:00:02]}  Ke5 {[%clk 0:00:05]} 67. Bf1 {[%clk 0:00:02]}  Be6 {[%clk 0:00:05]} 68. Bg2 {[%clk 0:00:02]}  Bd5 {[%clk 0:00:05]} 69. Bf1 {[%clk 0:00:02]}  Kf6 {[%clk 0:00:05]} 70. Be2 {[%clk 0:00:01]}  Kxg7 {[%clk 0:00:05]} 71. Bf1 {[%clk 0:00:02]}  Kf6 {[%clk 0:00:06]} 0-1

[Event "January 9 Early 2024"]
[Site "https://www.chess.com"]
[Date "2024.01.11"]
[Round "5"]
[White "Pinero Rodriguez, Carlos Jose"]
[Black "Hayrapetyan, Hovik"]
[Result "0-1"]
[Board "274"]
[TimeControl "180+1"]
[WhiteFideId "3901726"]
[BlackFideId "13302639"]
[WhiteElo "2566"]
[BlackElo "2806"]
[WhiteTeam "VEN"]
[BlackTeam "ARM"]
[WhiteClock "0:00:06"]
[BlackClock "0:00:06"]

1. e4 {[%clk 0:03:00]}  c5 {[%clk 0:02:56]} 2. Nf3 {[%clk 0:03:01]}  d6 {[%clk 0:02:56]} 3. d4 {[%clk 0:03:01]}  cxd4 {[%clk 0:02:57]} 4. Nxd4 {[%clk 0:03:02]}  Nf6 {[%clk 0:02:57]} 5. Nc3 {[%clk 0:03:02]}  a6 {[%clk 0:02:58]} 6. Bg5 {[%clk 0:03:03]}  Nbd7 {[%clk 0:02:58]} 7. f4 {[%clk 0:03:03]}  Qc7 {[%clk 0:02:55]} 8. Qe2 {[%clk 0:03:03]}  h6 {[%clk 0:02:53]} 9. Bxf6 {[%clk 0:03:00]}  Nxf6 {[%clk 0:02:53]} 10. e5 {[%clk 0:02:39]}  dxe5 {[%clk 0:01:35]} 11. fxe5 {[%clk 0:02:40]}  Bg4 {[%clk 0:01:34]} 12. Qe3 {[%clk 0:02:25]}  Nd7 {[%clk 0:01:33]} 13. e6 {[%clk 0:02:13]}  Bxe6 {[%clk 0:01:17]} 14. Nxe6 {[%clk 0:02:12]}  fxe6 {[%clk 0:01:18]} 15. Qxe6 {[%clk 0:02:10]}  O-O-O {[%clk 0:01:15]} 16. O-O-O {[%clk 0:02:03]}  Kb8 {[%clk 0:01:10]} 17. Nd5 {[%clk 0:00:56]}  Qe5 {[%clk 0:01:09]} 18. Qxe5+ {[%clk 0:00:45]}  Nxe5 {[%clk 0:01:10]} 19. Be2 {[%clk 0:00:42]}  g5 {[%clk 0:01:02]} 20. c3 {[%clk 0:00:28]}  e6 {[%clk 0:00:57]} 21. Ne3 {[%clk 0:00:27]}  Bc5 {[%clk 0:00:52]} 22. Ng4 {[%clk 0:00:26]}  Nxg4 {[%clk 0:00:51]} 23. Bxg4 {[%clk 0:00:27]}  e5 {[%clk 0:00:49]} 24. Rhe1 {[%clk 0:00:22]}  Rxd1+ {[%clk 0:00:44]} 25. Kxd1 {[%clk 0:00:23]}  Re8 {[%clk 0:00:44]} 26. Bf3 {[%clk 0:00:21]}  b5 {[%clk 0:00:40]} 27. Kc2 {[%clk 0:00:19]}  Kc7 {[%clk 0:00:39]} 28. a4 {[%clk 0:00:19]}  bxa4 {[%clk 0:00:29]} 29. Re4 {[%clk 0:00:16]}  a3 {[%clk 0:00:29]} 30. b4 {[%clk 0:00:16]}  Bd6 {[%clk 0:00:20]} 31. Kb3 {[%clk 0:00:16]}  a5 {[%clk 0:00:18]} 32. Kxa3 {[%clk 0:00:15]}  axb4+ {[%clk 0:00:17]} 33. cxb4 {[%clk 0:00:16]}  Ra8+ {[%clk 0:00:16]} 34. Kb3 {[%clk 0:00:16]}  Ra1 {[%clk 0:00:16]} 35. h3 {[%clk 0:00:16]}  Kd7 {[%clk 0:00:11]} 36. Rc4 {[%clk 0:00:14]}  Ke6 {[%clk 0:00:02]} 37. Bg4+ {[%clk 0:00:14]}  Kd5 {[%clk 0:00:02]} 38. Bf3+ {[%clk 0:00:15]}  Ke6 {[%clk 0:00:03]} 39. Bg4+ {[%clk 0:00:16]}  Ke7 {[%clk 0:00:03]} 40. Bf3 {[%clk 0:00:16]}  Rb1+ {[%clk 0:00:03]} 41. Ka4 {[%clk 0:00:16]}  Ke6 {[%clk 0:00:04]} 42. Kb5 {[%clk 0:00:16]}  Ke7 {[%clk 0:00:01]} 43. Ka5 {[%clk 0:00:16]}  Ra1+ {[%clk 0:00:02]} 44. Kb6 {[%clk 0:00:15]}  Ra4 {[%clk 0:00:02]} 45. Kb5 {[%clk 0:00:13]}  Ra1 {[%clk 0:00:03]} 46. Kc6 {[%clk 0:00:13]}  Ra4 {[%clk 0:00:02]} 47. Kb5 {[%clk 0:00:13]}  Ra2 {[%clk 0:00:02]} 48. Bd5 {[%clk 0:00:05]}  Rd2 {[%clk 0:00:01]} 49. Bf3 {[%clk 0:00:05]}  Rb2 {[%clk 0:00:02]} 50. Ka5 {[%clk 0:00:05]}  Rb1 {[%clk 0:00:02]} 51. b5 {[%clk 0:00:05]}  Ke6 {[%clk 0:00:02]} 52. Ka6 {[%clk 0:00:05]}  h5 {[%clk 0:00:02]} 53. Bxh5 {[%clk 0:00:04]}  Kd5 {[%clk 0:00:02]} 54. Rc6 {[%clk 0:00:04]}  e4 {[%clk 0:00:02]} 55. Bf7+ {[%clk 0:00:03]}  Ke5 {[%clk 0:00:03]} 56. Kb6 {[%clk 0:00:02]}  e3 {[%clk 0:00:03]} 57. Bc4 {[%clk 0:00:02]}  Rc1 {[%clk 0:00:03]} 58. Rc8 {[%clk 0:00:02]}  Kd4 {[%clk 0:00:01]} 59. Rc6 {[%clk 0:00:01]}  Rxc4 {[%clk 0:00:01]} 60. Rxd6+ {[%clk 0:00:01]}  Ke5 {[%clk 0:00:02]} 61. Rd8 {[%clk 0:00:01]}  Re4 {[%clk 0:00:03]} 62. Re8+ {[%clk 0:00:02]}  Kf4 {[%clk 0:00:03]} 63. Rxe4+ {[%clk 0:00:02]}  Kxe4 {[%clk 0:00:03]} 64. Ka7 {[%clk 0:00:03]}  e2 {[%clk 0:00:04]} 65. b6 {[%clk 0:00:04]}  e1=Q {[%clk 0:00:05]} 66. b7 {[%clk 0:00:05]}  Qa5+ {[%clk 0:00:05]} 67. Kb8 {[%clk 0:00:05]}  Kd5 {[%clk 0:00:06]} 68. Kc8 {[%clk 0:00:06]}  Qc5+ {[%clk 0:00:06]} 69. Kd8 {[%clk 0:00:06]}  Qd6+ {[%clk 0:00:06]} 70. Kc8 {[%clk 0:00:06]}  Kc6 {[%clk 0:00:06]} 71. b8=Q {[%clk 0:00:06]}  Qd7# {[%clk 0:00:06]} 0-1

[Event "January 9 Early 2024"]
[Site "https://www.chess.com"]
[Date "2024.01.11"]
[Round "5"]
[White "de Lisle, Sarah"]
[Black "Guevara Sanchez, Erick Marvin"]
[Result "0-1"]
[Board "276"]
[TimeControl "180+1"]
[WhiteFideId "402605"]
[BlackFideId "6700136"]
[WhiteElo "1934"]
[BlackElo "2214"]
[WhiteTeam "ENG"]
[BlackTeam "ESA"]
[WhiteClock "0:00:07"]
[BlackClock "0:00:08"]

1. e4 {[%clk 0:03:00]}  c5 {[%clk 0:02:59]} 2. Nc3 {[%clk 0:03:00]}  Nc6 {[%clk 0:02:58]} 3. g3 {[%clk 0:02:59]}  g6 {[%clk 0:02:59]} 4. Bg2 {[%clk 0:02:59]}  Bg7 {[%clk 0:02:59]} 5. d3 {[%clk 0:02:59]}  e6 {[%clk 0:02:59]} 6. Be3 {[%clk 0:02:58]}  Nd4 {[%clk 0:02:51]} 7. Qd2 {[%clk 0:02:56]}  h6 {[%clk 0:02:48]} 8. O-O-O {[%clk 0:02:54]}  Ne7 {[%clk 0:02:46]} 9. Nge2 {[%clk 0:02:45]}  Rb8 {[%clk 0:02:40]} 10. Bxd4 {[%clk 0:02:26]}  cxd4 {[%clk 0:02:38]} 11. Nb5 {[%clk 0:02:24]}  Qb6 {[%clk 0:02:33]} 12. Qb4 {[%clk 0:02:01]}  O-O {[%clk 0:02:32]} 13. Qxe7 {[%clk 0:01:19]}  Qxb5 {[%clk 0:02:31]} 14. Qd6 {[%clk 0:01:18]}  Ra8 {[%clk 0:02:12]} 15. Nxd4 {[%clk 0:01:18]}  Qa4 {[%clk 0:02:08]} 16. Nb3 {[%clk 0:01:05]}  Qxa2 {[%clk 0:02:07]} 17. d4 {[%clk 0:01:04]}  a5 {[%clk 0:01:58]} 18. Qa3 {[%clk 0:01:01]}  Qxa3 {[%clk 0:01:55]} 19. bxa3 {[%clk 0:01:01]}  b6 {[%clk 0:01:52]} 20. c3 {[%clk 0:00:56]}  Ba6 {[%clk 0:01:47]} 21. Rd2 {[%clk 0:00:54]}  Rac8 {[%clk 0:01:45]} 22. Kb2 {[%clk 0:00:52]}  Rc7 {[%clk 0:01:38]} 23. Rc1 {[%clk 0:00:50]}  Rfc8 {[%clk 0:01:33]} 24. e5 {[%clk 0:00:45]}  Bc4 {[%clk 0:01:25]} 25. f4 {[%clk 0:00:38]}  h5 {[%clk 0:01:24]} 26. h3 {[%clk 0:00:32]}  Bf8 {[%clk 0:01:22]} 27. g4 {[%clk 0:00:28]}  hxg4 {[%clk 0:01:21]} 28. hxg4 {[%clk 0:00:28]}  d6 {[%clk 0:01:17]} 29. Rf2 {[%clk 0:00:26]}  dxe5 {[%clk 0:01:10]} 30. fxe5 {[%clk 0:00:26]}  Bh6 {[%clk 0:00:56]} 31. Rcc2 {[%clk 0:00:25]}  Bg5 {[%clk 0:00:55]} 32. Be4 {[%clk 0:00:21]}  a4 {[%clk 0:00:47]} 33. Nd2 {[%clk 0:00:20]}  Bb5 {[%clk 0:00:43]} 34. Nf3 {[%clk 0:00:20]}  Be7 {[%clk 0:00:41]} 35. Rc1 {[%clk 0:00:18]}  Bc4 {[%clk 0:00:38]} 36. Rcc2 {[%clk 0:00:17]}  Bb3 {[%clk 0:00:38]} 37. Rc1 {[%clk 0:00:17]}  b5 {[%clk 0:00:38]} 38. Rcf1 {[%clk 0:00:15]}  Bc4 {[%clk 0:00:37]} 39. Rc1 {[%clk 0:00:14]}  Rd8 {[%clk 0:00:34]} 40. Bb1 {[%clk 0:00:13]}  Bd5 {[%clk 0:00:33]} 41. Ba2 {[%clk 0:00:12]}  Bxf3 {[%clk 0:00:28]} 42. Rxf3 {[%clk 0:00:12]}  Rdc8 {[%clk 0:00:26]} 43. Rcf1 {[%clk 0:00:11]}  Bg5 {[%clk 0:00:21]} 44. Bb1 {[%clk 0:00:10]}  Kg7 {[%clk 0:00:20]} 45. Rd3 {[%clk 0:00:09]}  Rc4 {[%clk 0:00:19]} 46. Rdf3 {[%clk 0:00:09]}  R8c7 {[%clk 0:00:15]} 47. Rd3 {[%clk 0:00:07]}  R4c6 {[%clk 0:00:14]} 48. Rdf3 {[%clk 0:00:07]}  Rc4 {[%clk 0:00:13]} 49. Rd3 {[%clk 0:00:06]}  Rc8 {[%clk 0:00:14]} 50. Rdf3 {[%clk 0:00:06]}  R4c7 {[%clk 0:00:14]} 51. Rd3 {[%clk 0:00:06]}  Rh8 {[%clk 0:00:15]} 52. Rdf3 {[%clk 0:00:07]}  Rh2+ {[%clk 0:00:15]} 53. R1f2 {[%clk 0:00:08]}  Rxf2+ {[%clk 0:00:14]} 54. Rxf2 {[%clk 0:00:08]}  Kh6 {[%clk 0:00:13]} 55. Rf3 {[%clk 0:00:07]}  Bh4 {[%clk 0:00:12]} 56. Rh3 {[%clk 0:00:08]}  Kg5 {[%clk 0:00:12]} 57. Rh1 {[%clk 0:00:07]}  Bg3 {[%clk 0:00:11]} 58. Rg1 {[%clk 0:00:07]}  Bf2 {[%clk 0:00:11]} 59. Bd3 {[%clk 0:00:07]}  Bxg1 {[%clk 0:00:10]} 60. Bxb5 {[%clk 0:00:06]}  Rb7 {[%clk 0:00:09]} 61. c4 {[%clk 0:00:06]}  Bxd4+ {[%clk 0:00:10]} 62. Kc2 {[%clk 0:00:06]}  Bxe5 {[%clk 0:00:10]} 63. Kd3 {[%clk 0:00:07]}  Kxg4 {[%clk 0:00:10]} 64. Ke4 {[%clk 0:00:07]}  f6 {[%clk 0:00:09]} 65. Kd3 {[%clk 0:00:07]}  Rxb5 {[%clk 0:00:07]} 66. Ke2 {[%clk 0:00:07]}  Rb3 {[%clk 0:00:06]} 67. Kd2 {[%clk 0:00:07]}  Rxa3 {[%clk 0:00:07]} 68. Kc2 {[%clk 0:00:07]}  Rb3 {[%clk 0:00:08]} 69. Kd2 {[%clk 0:00:07]}  Ra3 {[%clk 0:00:08]} 70. c5 {[%clk 0:00:08]}  Rb3 {[%clk 0:00:08]} 71. c6 {[%clk 0:00:08]}  Rc3 {[%clk 0:00:08]} 72. c7 {[%clk 0:00:08]}  Rxc7 {[%clk 0:00:09]} 73. Ke2 {[%clk 0:00:07]}  a3 {[%clk 0:00:10]} 74. Kd3 {[%clk 0:00:07]}  a2 {[%clk 0:00:08]} 0-1

[Event "January 9 Early 2024"]
[Site "https://www.chess.com"]
[Date "2024.01.11"]
[Round "5"]
[White "Syaputra, Arifa Rizki"]
[Black "Sjugirov, Sanan"]
[Result "0-1"]
[Board "277"]
[TimeControl "180+1"]
[WhiteFideId "7105100"]
[BlackFideId "4189302"]
[WhiteElo "2724"]
[BlackElo "2966"]
[WhiteTeam "INA"]
[BlackTeam "HUN"]
[WhiteClock "0:00:07"]
[BlackClock "0:00:04"]

1. d4 {[%clk 0:03:00]}  Nf6 {[%clk 0:03:00]} 2. Nf3 {[%clk 0:03:00]}  d5 {[%clk 0:02:59]} 3. Bf4 {[%clk 0:02:57]}  c5 {[%clk 0:02:59]} 4. e3 {[%clk 0:02:55]}  Nc6 {[%clk 0:02:59]} 5. Nbd2 {[%clk 0:02:51]}  e6 {[%clk 0:03:00]} 6. c3 {[%clk 0:02:50]}  Nh5 {[%clk 0:03:00]} 7. Be5 {[%clk 0:02:46]}  f6 {[%clk 0:03:00]} 8. Bg3 {[%clk 0:02:46]}  cxd4 {[%clk 0:02:38]} 9. cxd4 {[%clk 0:02:33]}  g6 {[%clk 0:02:29]} 10. Be2 {[%clk 0:02:27]}  Be7 {[%clk 0:02:16]} 11. O-O {[%clk 0:02:25]}  O-O {[%clk 0:02:15]} 12. Rc1 {[%clk 0:02:25]}  Bd7 {[%clk 0:02:14]} 13. a3 {[%clk 0:02:12]}  Rc8 {[%clk 0:02:14]} 14. Ne1 {[%clk 0:02:07]}  Nxg3 {[%clk 0:02:11]} 15. hxg3 {[%clk 0:02:08]}  f5 {[%clk 0:02:05]} 16. Nd3 {[%clk 0:02:06]}  Bd6 {[%clk 0:02:05]} 17. b4 {[%clk 0:02:01]}  b6 {[%clk 0:02:04]} 18. Qb3 {[%clk 0:01:58]}  Ne7 {[%clk 0:02:01]} 19. Rxc8 {[%clk 0:01:55]}  Qxc8 {[%clk 0:01:57]} 20. Rc1 {[%clk 0:01:55]}  Qe8 {[%clk 0:01:57]} 21. Nf3 {[%clk 0:01:52]}  Bb5 {[%clk 0:01:49]} 22. Qb2 {[%clk 0:01:49]}  Bc4 {[%clk 0:01:43]} 23. Nfe5 {[%clk 0:01:43]}  b5 {[%clk 0:01:30]} 24. Nc5 {[%clk 0:01:25]}  Bxe5 {[%clk 0:01:23]} 25. dxe5 {[%clk 0:01:24]}  Nc6 {[%clk 0:01:23]} 26. f4 {[%clk 0:01:12]}  Qe7 {[%clk 0:01:20]} 27. a4 {[%clk 0:01:00]}  a5 {[%clk 0:01:13]} 28. axb5 {[%clk 0:00:47]}  Nxb4 {[%clk 0:01:14]} 29. Na6 {[%clk 0:00:39]}  Rc8 {[%clk 0:00:51]} 30. Bxc4 {[%clk 0:00:35]}  dxc4 {[%clk 0:00:52]} 31. Qd4 {[%clk 0:00:34]}  Nxa6 {[%clk 0:00:19]} 32. bxa6 {[%clk 0:00:34]}  Qc7 {[%clk 0:00:20]} 33. Rc3 {[%clk 0:00:25]}  Kg7 {[%clk 0:00:17]} 34. a7 {[%clk 0:00:22]}  Ra8 {[%clk 0:00:17]} 35. Rxc4 {[%clk 0:00:18]}  Qxa7 {[%clk 0:00:17]} 36. Qd6 {[%clk 0:00:19]}  Qxe3+ {[%clk 0:00:08]} 37. Kh2 {[%clk 0:00:19]}  Ra7 {[%clk 0:00:04]} 38. Qxe6 {[%clk 0:00:16]}  Qe2 {[%clk 0:00:03]} 39. Qf6+ {[%clk 0:00:14]}  Kh6 {[%clk 0:00:03]} 40. Qg5+ {[%clk 0:00:12]}  Kg7 {[%clk 0:00:03]} 41. Qf6+ {[%clk 0:00:08]}  Kh6 {[%clk 0:00:04]} 42. Qg5+ {[%clk 0:00:07]}  Kg7 {[%clk 0:00:04]} 43. Rc6 {[%clk 0:00:06]}  Qh5+ {[%clk 0:00:03]} 44. Qxh5 {[%clk 0:00:06]}  gxh5 {[%clk 0:00:04]} 45. Rc3 {[%clk 0:00:07]}  a4 {[%clk 0:00:04]} 46. Ra3 {[%clk 0:00:07]}  Kf7 {[%clk 0:00:05]} 47. Kh3 {[%clk 0:00:08]}  Ra5 {[%clk 0:00:04]} 48. Kh4 {[%clk 0:00:08]}  Kg6 {[%clk 0:00:05]} 49. e6 {[%clk 0:00:06]}  Kf6 {[%clk 0:00:01]} 50. Re3 {[%clk 0:00:06]}  Ke7 {[%clk 0:00:01]} 51. Ra3 {[%clk 0:00:06]}  Kxe6 {[%clk 0:00:02]} 52. Kxh5 {[%clk 0:00:07]}  Kd5 {[%clk 0:00:02]} 53. Kh6 {[%clk 0:00:08]}  Kc4 {[%clk 0:00:03]} 54. Kxh7 {[%clk 0:00:07]}  Kb4 {[%clk 0:00:03]} 55. Ra1 {[%clk 0:00:07]}  Kb3 {[%clk 0:00:04]} 56. Kg6 {[%clk 0:00:07]}  Kb2 {[%clk 0:00:04]} 57. Rf1 {[%clk 0:00:06]}  a3 {[%clk 0:00:04]} 58. g4 {[%clk 0:00:07]}  fxg4 {[%clk 0:00:04]} 59. f5 {[%clk 0:00:07]}  a2 {[%clk 0:00:03]} 60. f6 {[%clk 0:00:08]}  a1=Q {[%clk 0:00:03]} 61. Rxa1 {[%clk 0:00:08]}  Rxa1 {[%clk 0:00:03]} 62. f7 {[%clk 0:00:09]}  Rf1 {[%clk 0:00:04]} 63. Kg7 {[%clk 0:00:09]}  Kc3 {[%clk 0:00:04]} 64. f8=Q {[%clk 0:00:09]}  Rxf8 {[%clk 0:00:04]} 65. Kxf8 {[%clk 0:00:10]}  Kd4 {[%clk 0:00:04]} 66. Kf7 {[%clk 0:00:10]}  Ke3 {[%clk 0:00:04]} 67. Kg6 {[%clk 0:00:10]}  g3 {[%clk 0:00:03]} 68. Kf5 {[%clk 0:00:07]}  Kf2 {[%clk 0:00:04]} 0-1